bitfinex/quotes_SOLUSD_20220102
["timestamp","ask_amount","ask_price","bid_price","bid_amount"]
[1641135019219,9.3089,175.49,175.41,8.5497]
[1641135019623,8.8089,175.49,175.41,8.5497]
[1641135020521,8.8089,175.49,175.41,9.0497]
[1641135021523,9.3089,175.49,175.41,8.5497]
[1641135025026,8.8089,175.49,175.41,8.5497]
[1641135025725,31.77442055,175.49,175.41,8.5497]
[1641135026527,31.77442055,175.49,175.41,9.0497]
[1641135027928,31.77442055,175.49,175.41,8.5497]
[1641135029531,32.27442055,175.49,175.41,8.5497]
[1641135031436,31.77442055,175.49,175.41,8.5497]
[1641135031637,8.8089,175.49,175.41,8.5497]
[1641135032238,8.8089,175.49,175.41,9.0497]
[1641135032440,0.26,175.49,175.41,9.0497]
[1641135032838,10.0717,175.5,175.41,9.0497]
[1641135037467,10.5717,175.5,175.41,9.0497]
[1641135037866,10.0717,175.5,175.41,9.0497]
[1641135038366,10.5717,175.5,175.41,9.0497]
[1641135039872,10.0717,175.5,175.41,9.0497]
[1641135040569,10.5717,175.5,175.41,9.0497]
[1641135041069,10.0717,175.5,175.41,9.0497]
[1641135041370,10.5717,175.5,175.41,9.0497]
[1641135042271,9.5717,175.5,175.41,9.0497]
[1641135042674,9.0717,175.5,175.41,9.0497]
[1641135043072,8.8085,175.5,175.43,8.5487]
[1641135043476,9.3085,175.5,175.43,8.5487]
[1641135045776,8.8085,175.5,175.43,8.5487]
[1641135046875,9.3085,175.5,175.43,8.5487]
[1641135047977,8.8085,175.5,175.43,8.5487]
[1641135051979,8.8085,175.5,175.43,9.0487]
[1641135052182,9.3085,175.5,175.43,9.0487]
[1641135054182,9.3085,175.5,175.43,8.5487]
[1641135054584,9.3085,175.5,175.42,9.859]
[1641135056284,10.6034,175.5,175.42,9.859]
[1641135059095,12.17523382,175.5,175.42,9.859]
[1641135060297,10.6034,175.5,175.42,9.859]
[1641135061102,12.17523382,175.5,175.42,9.859]
[1641135064614,10.6034,175.5,175.42,9.859]
[1641135065013,12.17523382,175.5,175.42,9.859]
[1641135065414,12.17523382,175.5,175.42,1.3097]
[1641135066716,1.57183382,175.49,175.42,1.3097]
[1641135066915,2.07183382,175.49,175.42,1.3097]
[1641135067118,8.55,175.47,175.42,1.3097]
[1641135067515,8.81,175.47,175.42,1.3097]
[1641135077628,8.81,175.47,175.39,8.18]
[1641135077629,8.81,175.47,175.36,8.18]
[1641135077831,10.73669368,175.47,175.35,72.272]
[1641135078429,1.2792,175.46,175.35,72.272]
[1641135078632,1.57183382,175.44,175.35,72.272]
[1641135078830,1.57183382,175.44,175.35,80.8244]
[1641135079033,2.33183382,175.44,175.35,80.8244]
[1641135079433,2.33183382,175.44,175.35,72.272]
[1641135079834,1.57183382,175.43,175.35,72.272]
[1641135080058,1.83183382,175.43,175.35,72.272]
[1641135080235,2.33183382,175.43,175.35,72.272]
[1641135080633,0.76,175.43,175.35,72.272]
[1641135080837,0.26,175.43,175.35,72.272]
[1641135081135,2.33183382,175.44,175.35,72.272]
[1641135081336,8.5533,175.4,175.35,72.272]
[1641135081537,8.8133,175.4,175.35,72.272]
[1641135083536,0.26,175.4,175.35,72.272]
[1641135083936,8.8129,175.41,175.35,72.272]
[1641135085239,8.8129,175.41,175.35,80.8245]
[1641135085437,0.26,175.41,175.35,80.8245]
[1641135085838,8.8123,175.42,175.35,80.8245]
[1641135087538,8.5523,175.42,175.35,80.8245]
[1641135087744,1.2855,175.43,175.35,80.8245]
[1641135087942,1.7855,175.43,175.35,80.8245]
[1641135089141,2.0455,175.43,175.35,81.3245]
[1641135089347,10.5974,175.43,175.35,81.3245]
[1641135089943,10.0974,175.43,175.35,81.3245]
[1641135090645,10.0974,175.43,175.35,80.8245]
[1641135091245,10.0974,175.43,175.35,80.3245]
[1641135091449,10.5974,175.43,175.35,80.3245]
[1641135093152,10.3374,175.43,175.35,80.3245]
[1641135094153,10.3374,175.43,175.35,71.772]
[1641135094652,10.5974,175.43,175.35,71.772]
[1641135094852,12.16923382,175.43,175.35,71.772]
[1641135095474,12.16923382,175.43,175.35,70.272]
[1641135096776,12.16923382,175.43,175.33,2.0836515]
[1641135096978,13.5959275,175.43,175.33,2.0836515]
[1641135097582,1.57183382,175.41,175.33,2.0836515]
[1641135097779,8.5553,175.37,175.33,2.0836515]
[1641135097980,8.8153,175.37,175.33,2.0836515]
[1641135098178,9.3153,175.37,175.33,2.0836515]
[1641135098378,8.8153,175.37,175.33,2.0836515]
[1641135100684,0.26,175.37,175.33,2.0836515]
[1641135101085,8.8143,175.38,175.33,2.0836515]
[1641135102484,8.5543,175.38,175.33,2.0836515]
[1641135103485,8.0543,175.38,175.33,2.0836515]
[1641135103885,8.3143,175.38,175.33,2.0836515]
[1641135105485,8.8143,175.38,175.33,2.0836515]
[1641135106788,8.3143,175.38,175.33,2.0836515]
[1641135107087,0.26,175.38,175.33,2.0836515]
[1641135107490,10.1267,175.39,175.33,2.0836515]
[1641135108287,10.6267,175.39,175.33,2.0836515]
[1641135108889,10.1267,175.39,175.33,2.0836515]
[1641135109690,10.6267,175.39,175.33,2.0836515]
[1641135114497,9.0538,175.39,175.33,2.0836515]
[1641135114699,8.5534,175.4,175.33,2.0836515]
[1641135115697,8.5529,175.41,175.33,10.6372515]
[1641135115900,8.5529,175.41,175.33,12.56394518]
[1641135117610,8.8129,175.41,175.33,12.56394518]
[1641135118405,8.8129,175.41,175.33,11.1372515]
[1641135129234,8.8129,175.41,175.33,10.6372515]
[1641135129433,9.3129,175.41,175.33,10.6372515]
[1641135129735,9.3129,175.41,175.33,9.1372515]
[1641135131441,8.8129,175.41,175.33,9.1372515]
[1641135131641,9.3129,175.41,175.33,9.6372515]
[1641135132446,8.8129,175.41,175.33,9.1372515]
[1641135132642,9.3129,175.41,175.33,9.1372515]
[1641135133747,10.5274,175.41,175.33,9.1372515]
[1641135134544,10.5274,175.41,175.33,0.5836515]
[1641135136548,10.5274,175.41,175.33,9.1375515]
[1641135137348,10.5274,175.41,175.33,0.5836515]
[1641135139352,10.5274,175.41,175.32,8.4186515]
[1641135139553,10.5274,175.41,175.32,3.4186515]
[1641135140556,10.5274,175.41,175.32,4.7209515]
[1641135141754,10.5274,175.41,175.32,4.2209515]
[1641135142156,10.2674,175.41,175.32,4.2209515]
[1641135142458,0.5,175.41,175.32,4.7209515]
[1641135142855,10.62423382,175.42,175.32,4.7209515]
[1641135143557,9.0524,175.42,175.32,4.7209515]
[1641135144156,9.3124,175.42,175.32,4.7209515]
[1641135144955,8.8124,175.42,175.32,4.7209515]
[1641135145757,9.3124,175.42,175.32,4.7209515]
[1641135148689,10.5428,175.42,175.32,4.7209515]
[1641135152992,10.5428,175.42,175.32,4.2209515]
[1641135153192,10.5428,175.42,175.32,4.7209515]
[1641135153391,10.5428,175.42,175.32,4.2209515]
[1641135153594,12.11463382,175.42,175.32,4.2209515]
[1641135154693,12.11463382,175.42,175.32,4.7209515]
[1641135165603,12.11463382,175.42,175.32,4.2209515]
[1641135165805,12.11463382,175.42,175.31,72.6152]
[1641135166014,18.06397819,175.42,175.31,72.6152]
[1641135166807,29.8805268,175.39,175.31,72.6152]
[1641135167005,8.5557,175.36,175.31,72.6152]
[1641135167208,8.5557,175.36,175.3,8.5551]
[1641135167406,8.8157,175.36,175.29,1.2405]
[1641135167710,8.8157,175.36,175.29,8.5558]
[1641135172721,8.5548,175.37,175.29,8.5558]
[1641135172926,8.5548,175.37,175.29,9.0558]
[1641135174037,8.8148,175.37,175.29,9.0558]
[1641135178744,0.26,175.37,175.29,9.0558]
[1641135178946,1.2224,175.38,175.29,9.0558]
[1641135179146,1.57183382,175.41,175.29,9.0558]
[1641135179445,2.07183382,175.41,175.33,8.5535]
[1641135179647,3.33003382,175.41,175.33,8.5535]
[1641135179845,1.7582,175.41,175.33,9.0535]
[1641135180046,8.5533,175.4,175.33,9.0535]
[1641135180449,1.57183382,175.42,175.33,9.0535]
[1641135181047,1.57183382,175.43,175.33,9.0535]
[1641135181246,8.5529,175.42,175.36,8.5521]
[1641135181446,1.57183382,175.43,175.36,8.5521]
[1641135181647,1.2174,175.44,175.36,14.6701]
[1641135182048,1.58733382,175.45,175.36,14.6701]
[1641135182549,2.08733382,175.45,175.36,14.6701]
[1641135182752,8.5523,175.43,175.36,14.6701]
[1641135183151,8.8123,175.43,175.36,14.6701]
[1641135183549,8.8123,175.43,175.34,1.332]
[1641135183748,9.3123,175.43,175.34,9.8851]
[1641135184349,8.8123,175.43,175.34,9.8851]
[1641135184550,10.88413382,175.43,175.34,9.8851]
[1641135184749,10.88413382,175.43,175.34,10.3851]
[1641135185152,9.3123,175.43,175.34,10.3851]
[1641135185955,9.3123,175.43,175.34,9.8851]
[1641135186153,10.88413382,175.43,175.34,9.8851]
[1641135186655,9.3123,175.43,175.34,9.8851]
[1641135187655,8.8123,175.43,175.34,9.8851]
[1641135187856,8.8123,175.43,175.34,10.3851]
[1641135189558,9.3123,175.43,175.34,10.3851]
[1641135196068,10.88413382,175.43,175.34,10.3851]
[1641135196568,10.38413382,175.43,175.34,10.3851]
[1641135197169,8.8123,175.43,175.34,10.3851]
[1641135197770,9.3123,175.43,175.34,10.3851]
[1641135198372,10.62413382,175.43,175.34,10.3851]
[1641135198572,10.12413382,175.43,175.34,10.3851]
[1641135199574,8.5523,175.43,175.34,10.3851]
[1641135199775,8.8123,175.43,175.34,10.3851]
[1641135201979,1.57183382,175.44,175.34,10.3851]
[1641135202481,10.12323382,175.45,175.34,10.3851]
[1641135202678,10.62323382,175.45,175.34,10.3851]
[1641135203278,10.88323382,175.45,175.34,10.3851]
[1641135204080,9.3114,175.45,175.34,10.3851]
[1641135204480,10.88323382,175.45,175.34,10.3851]
[1641135206390,10.88323382,175.45,175.34,10.6451]
[1641135206586,10.38323382,175.45,175.34,10.3851]
[1641135206987,10.88323382,175.45,175.34,10.3851]
[1641135207185,9.3114,175.45,175.34,10.3851]
[1641135208513,10.5805,175.45,175.34,10.3851]
[1641135209917,12.15233382,175.45,175.34,10.3851]
[1641135211819,1.57183382,175.44,175.34,10.3851]
[1641135212016,8.5518,175.43,175.34,10.3851]
[1641135212417,8.8118,175.43,175.34,10.3851]
[1641135215938,9.3118,175.43,175.34,10.3851]
[1641135216136,9.3118,175.43,175.34,9.8851]
[1641135216337,9.3118,175.43,175.34,10.3851]
[1641135216937,10.88363382,175.43,175.34,10.3851]
[1641135219167,10.88363382,175.43,175.34,9.8851]
[1641135219964,10.88363382,175.43,175.34,10.3851]
[1641135220367,9.3118,175.43,175.34,10.3851]
[1641135221168,9.3118,175.43,175.34,9.8851]
[1641135221571,10.561,175.43,175.34,9.8851]
[1641135222169,10.561,175.43,175.34,10.3851]
[1641135222369,10.561,175.43,175.34,9.0531]
[1641135222668,10.561,175.43,175.34,8.5531]
[1641135223368,10.561,175.43,175.33,9.8282]
[1641135223572,12.13283382,175.43,175.33,9.8282]
[1641135224770,12.13283382,175.43,175.33,1.2742]
[1641135225370,12.13283382,175.43,175.32,87.4735]
[1641135225770,1.57183382,175.42,175.32,87.4735]
[1641135225973,8.5548,175.37,175.32,87.4735]
[1641135226386,8.8148,175.37,175.32,87.4735]
[1641135226781,0.26,175.37,175.32,87.4735]
[1641135226986,1.5101,175.4,175.32,87.4735]
[1641135227183,1.2501,175.4,175.32,87.4735]
[1641135227384,1.5101,175.4,175.32,87.4735]
[1641135227583,1.2501,175.4,175.32,87.4735]
[1641135227789,1.2501,175.4,175.32,87.9735]
[1641135227790,9.8035,175.4,175.32,87.9735]
[1641135227998,9.8035,175.4,175.32,87.4735]
[1641135228195,9.8035,175.4,175.32,87.9735]
[1641135228395,1.57183382,175.42,175.32,87.9735]
[1641135228596,1.57183382,175.42,175.33,8.18]
[1641135228795,1.57183382,175.42,175.37,8.5508]
[1641135228995,11.69446764,175.46,175.37,8.5508]
[1641135228996,10.12263382,175.46,175.37,8.5508]
[1641135229396,10.12263382,175.46,175.37,9.0508]
[1641135229798,8.8108,175.46,175.37,9.0508]
[1641135230618,8.8108,175.46,175.37,8.5508]
[1641135230820,9.3108,175.46,175.37,8.5508]
[1641135231420,10.88263382,175.46,175.37,8.5508]
[1641135231821,9.3108,175.46,175.37,8.5508]
[1641135232021,8.8108,175.46,175.37,9.0508]
[1641135232223,8.8108,175.46,175.37,8.5508]
[1641135232621,1.57183382,175.45,175.37,8.5508]
[1641135232827,10.12263382,175.45,175.37,9.0508]
[1641135233029,10.38263382,175.45,175.37,8.5508]
[1641135233228,10.88263382,175.45,175.37,8.5508]
[1641135233630,10.38263382,175.45,175.37,9.0508]
[1641135233830,1.57183382,175.43,175.37,8.5508]
[1641135234134,1.83183382,175.43,175.37,8.5508]
[1641135234530,0.26,175.43,175.37,9.0508]
[1641135234933,10.38333382,175.44,175.37,9.0508]
[1641135235132,8.8115,175.44,175.37,9.0508]
[1641135235532,0.26,175.44,175.37,9.0508]
[1641135235732,10.38273382,175.45,175.37,9.0508]
[1641135239737,10.88273382,175.45,175.37,8.5508]
[1641135240438,8.5519,175.43,175.37,9.0508]
[1641135240736,8.5519,175.43,175.37,8.5508]
[1641135240937,8.8119,175.43,175.36,8.5524]
[1641135241537,8.8119,175.43,175.36,9.0524]
[1641135241737,8.8119,175.43,175.36,8.5524]
[1641135242138,8.8119,175.43,175.36,9.0524]
[1641135243340,8.8119,175.43,175.36,8.5524]
[1641135243940,8.8119,175.43,175.36,9.0524]
[1641135245340,8.8119,175.43,175.36,8.5524]
[1641135245543,8.8119,175.43,175.32,115.6059]
[1641135245544,8.8119,175.43,175.32,8.18]
[1641135245743,9.3119,175.43,175.34,0.5]
[1641135246342,10.88373382,175.43,175.32,8.68]
[1641135246746,10.88373382,175.43,175.32,9.0542]
[1641135246946,1.57183382,175.41,175.32,0.5]
[1641135247148,24.91335254,175.41,175.32,0.5]
[1641135247348,8.5548,175.37,175.3,78.7642364]
[1641135247547,0.26,175.37,175.3,78.7642364]
[1641135248050,0.26,175.37,175.32,8.5541]
[1641135248249,2.0009,175.4,175.32,8.5541]
[1641135248452,2.0009,175.4,175.32,9.0541]
[1641135249273,8.5543,175.38,175.32,9.0541]
[1641135249475,8.8143,175.38,175.32,9.0541]
[1641135250377,8.8143,175.38,175.32,0.5]
[1641135250776,8.8143,175.38,175.31,0.5]
[1641135250979,8.8143,175.38,175.3,80.0311364]
[1641135252281,8.8143,175.38,175.32,8.5542]
[1641135252479,8.8143,175.38,175.32,9.0542]
[1641135255582,8.8143,175.38,175.32,0.5]
[1641135255983,8.8143,175.38,175.31,9.0548]
[1641135276530,8.5543,175.38,175.31,9.0548]
[1641135277931,8.8143,175.38,175.31,9.0548]
[1641135285242,0.26,175.38,175.31,9.0548]
[1641135285642,9.3138,175.39,175.31,9.0548]
[1641135286946,0.5,175.39,175.31,9.0548]
[1641135287350,11.36603382,175.4,175.31,9.0548]
[1641135287947,11.36603382,175.4,175.34,8.5532]
[1641135288145,9.7942,175.4,175.34,8.5532]
[1641135288349,10.0542,175.4,175.34,9.0532]
[1641135288548,10.0542,175.4,175.34,8.5532]
[1641135289152,10.0542,175.4,175.34,9.0532]
[1641135289751,10.0542,175.4,175.34,8.5532]
[1641135290255,11.62603382,175.4,175.34,8.5532]
[1641135290456,11.62603382,175.4,175.34,9.0532]
[1641135291059,10.0542,175.4,175.34,9.0532]
[1641135291963,10.0542,175.4,175.34,8.5532]
[1641135292964,11.62603382,175.4,175.34,9.0532]
[1641135293366,1.57183382,175.4,175.34,9.0532]
[1641135293567,1.57183382,175.41,175.34,9.0532]
[1641135294195,1.57183382,175.42,175.34,9.0532]
[1641135294386,1.57183382,175.42,175.35,1.3369]
[1641135294587,1.57183382,175.42,175.37,8.5516]
[1641135294990,1.57183382,175.42,175.37,9.0516]
[1641135295190,10.12393382,175.43,175.37,8.5516]
[1641135295789,10.12393382,175.43,175.37,9.0516]
[1641135295991,10.38393382,175.43,175.37,8.5516]
[1641135296391,10.38393382,175.43,175.37,9.0516]
[1641135296790,10.38393382,175.43,175.37,8.5516]
[1641135296989,8.8121,175.43,175.37,8.5516]
[1641135297490,10.38393382,175.43,175.37,9.0516]
[1641135297691,10.38393382,175.43,175.37,8.5516]
[1641135298291,10.38393382,175.43,175.37,9.0516]
[1641135298490,10.38393382,175.43,175.37,8.5516]
[1641135299091,10.38393382,175.43,175.37,0.5]
[1641135299291,10.88393382,175.43,175.36,8.5525]
[1641135299492,10.88393382,175.43,175.35,1.3369]
[1641135299898,10.88393382,175.43,175.35,1.8369]
[1641135300292,10.38393382,175.43,175.35,10.3898]
[1641135300492,10.12443382,175.42,175.35,10.3898]
[1641135300894,10.38443382,175.42,175.38,1.2647364]
[1641135301499,8.8126,175.42,175.38,1.2647364]
[1641135303004,10.38443382,175.42,175.38,1.2647364]
[1641135304202,10.12443382,175.42,175.38,1.2647364]
[1641135304402,1.57183382,175.42,175.38,1.2647364]
[1641135304802,1.57183382,175.42,175.38,1.7647364]
[1641135305404,1.57183382,175.45,175.38,1.7647364]
[1641135305604,1.83183382,175.45,175.38,1.7647364]
[1641135305804,1.57183382,175.44,175.38,1.2647364]
[1641135306004,2.33183382,175.44,175.38,1.2647364]
[1641135306406,1.83183382,175.44,175.38,1.7647364]
[1641135306605,1.83183382,175.44,175.38,1.2647364]
[1641135307005,1.83183382,175.44,175.38,1.7647364]
[1641135307204,8.5523,175.43,175.38,1.7647364]
[1641135307605,8.8123,175.43,175.38,1.7647364]
[1641135308006,8.8123,175.43,175.38,1.2647364]
[1641135308407,35.3236168,175.43,175.38,1.2647364]
[1641135309207,35.3236168,175.43,175.38,1.7647364]
[1641135309407,35.3236168,175.43,175.38,1.2647364]
[1641135311007,9.3123,175.43,175.38,1.2647364]
[1641135311710,1.57183382,175.41,175.38,1.2647364]
[1641135311909,11.58500345,175.4,175.38,1.2647364]
[1641135312111,14.87383606,175.4,175.38,1.2647364]
[1641135312808,14.37383606,175.4,175.38,1.2647364]
[1641135318718,14.87383606,175.4,175.38,1.2647364]
[1641135319321,14.37383606,175.4,175.38,1.2647364]
[1641135320024,14.87383606,175.4,175.38,1.2647364]
[1641135331388,14.37383606,175.4,175.38,1.2647364]
[1641135332362,14.87383606,175.4,175.38,1.2647364]
[1641135337575,16.44566988,175.4,175.38,1.2647364]
[1641135344109,16.18566988,175.4,175.38,1.2647364]
[1641135344307,9.62533382,175.4,175.38,1.2647364]
[1641135344709,10.12503382,175.41,175.38,1.2647364]
[1641135345011,10.62503382,175.41,175.38,1.2647364]
[1641135345606,10.88503382,175.41,175.38,1.2647364]
[1641135346305,3.03150345,175.4,175.38,1.2647364]
[1641135346506,11.84510345,175.4,175.38,1.2647364]
[1641135346707,13.91693727,175.4,175.38,1.2647364]
[1641135346909,13.41693727,175.4,175.38,1.2647364]
[1641135347108,13.15693727,175.4,175.38,1.2647364]
[1641135347310,13.65693727,175.4,175.38,1.2647364]
[1641135348110,12.08510345,175.4,175.38,1.2647364]
[1641135348512,12.34510345,175.4,175.38,1.2647364]
[1641135349212,3.02883261,175.39,175.38,1.2647364]
[1641135349612,3.28883261,175.39,175.38,1.2647364]
[1641135352417,0.26,175.39,175.38,1.2647364]
[1641135353015,3.28883261,175.39,175.38,1.2647364]
[1641135354318,11.84303261,175.39,175.38,1.2647364]
[1641135356727,14.87453606,175.39,175.38,1.2647364]
[1641135358352,15.37453606,175.39,175.38,1.2647364]
[1641135359052,14.87453606,175.39,175.38,1.2647364]
[1641135359653,17.20793106,175.39,175.38,1.2647364]
[1641135360858,17.70793106,175.39,175.38,1.2647364]
[1641135361356,17.20793106,175.39,175.38,1.2647364]
[1641135367963,17.70793106,175.39,175.38,1.2647364]
[1641135369363,17.20793106,175.39,175.38,1.2647364]
[1641135369565,18.77976488,175.39,175.38,1.2647364]
[1641135369767,16.44636988,175.39,175.38,1.2647364]
[1641135370365,16.94636988,175.39,175.38,1.2647364]
[1641135371468,19.27976588,175.39,175.38,1.2647364]
[1641135374270,17.70793206,175.39,175.38,1.2647364]
[1641135374871,19.32347056,175.39,175.38,1.2647364]
[1641135375272,18.82347056,175.39,175.38,1.2647364]
[1641135375472,19.32347056,175.39,175.38,1.2647364]
[1641135377274,17.70793206,175.39,175.38,1.2647364]
[1641135381581,15.37453606,175.39,175.38,1.2647364]
[1641135383377,17.70793106,175.39,175.38,1.2647364]
[1641135384178,57.70793106,175.39,175.38,3.64e-05]
[1641135384577,17.70793106,175.39,175.38,3.64e-05]
[1641135384978,19.01873106,175.39,175.38,3.64e-05]
[1641135385778,27.19873106,175.39,175.38,3.64e-05]
[1641135387181,19.01873106,175.39,175.38,3.64e-05]
[1641135387981,18.51873106,175.39,175.38,3.64e-05]
[1641135389381,19.01873106,175.39,175.38,3.64e-05]
[1641135391087,27.19873106,175.39,175.38,3.64e-05]
[1641135392813,52.04703658,175.39,175.38,3.64e-05]
[1641135393411,49.71364158,175.39,175.38,3.64e-05]
[1641135395015,56.19891741,175.39,175.38,3.64e-05]
[1641135395417,58.53231341,175.39,175.38,3.64e-05]
[1641135395614,52.04703758,175.39,175.38,3.64e-05]
[1641135396216,55.01949626,175.39,175.38,3.64e-05]
[1641135397717,55.01949626,175.39,175.38,0.17972453]
[1641135399122,52.04703758,175.39,175.38,0.17972453]
[1641135401324,43.86703758,175.39,175.38,0.17972453]
[1641135403726,52.04703758,175.39,175.38,0.17972453]
[1641135405327,49.71364158,175.39,175.38,0.17972453]
[1641135406628,52.04703658,175.39,175.38,0.17972453]
[1641135407433,43.86703658,175.39,175.38,0.17972453]
[1641135418540,52.04703658,175.39,175.38,0.17972453]
[1641135421646,51.78703658,175.39,175.38,0.17972453]
[1641135421847,50.47623658,175.39,175.38,0.17972453]
[1641135422448,44.41590052,175.39,175.38,0.17972453]
[1641135423250,36.49590052,175.39,175.38,0.17972453]
[1641135423852,38.10033868,175.39,175.38,0.17972453]
[1641135424654,13.25203316,175.39,175.38,0.17972453]
[1641135426671,19.31236922,175.39,175.38,0.17972453]
[1641135430274,17.70793106,175.39,175.38,0.17972453]
[1641135431477,19.31930992,175.39,175.38,0.17972453]
[1641135433479,18.55930992,175.39,175.38,0.17972453]
[1641135434182,19.05930992,175.39,175.38,0.17972453]
[1641135434378,18.55930992,175.39,175.38,0.17972453]
[1641135434579,10.00510992,175.39,175.38,0.17972453]
[1641135434979,8.39373106,175.39,175.38,0.17972453]
[1641135435681,8.65373106,175.39,175.38,0.17972453]
[1641135436681,17.70793106,175.39,175.38,0.17972453]
[1641135441586,9.15373106,175.39,175.38,0.17972453]
[1641135442986,17.70793106,175.39,175.38,0.17972453]
[1641135449994,17.20793106,175.39,175.38,0.17972453]
[1641135450493,8.65373106,175.39,175.38,0.17972453]
[1641135452022,2.593395,175.39,175.38,0.17972453]
[1641135452921,4.20212868,175.39,175.38,0.17972453]
[1641135454122,3.94212868,175.39,175.38,0.17972453]
[1641135454722,2.333395,175.39,175.38,0.17972453]
[1641135456628,2.333395,175.39,175.38,8.73132453]
[1641135457427,2.593395,175.39,175.38,8.73132453]
[1641135458226,2.333395,175.39,175.38,8.73132453]
[1641135465638,2.333395,175.39,175.38,0.17972453]
[1641135466841,2.593395,175.39,175.38,0.17972453]
[1641135468341,5.62222761,175.39,175.38,0.17972453]
[1641135468541,8.65373106,175.39,175.38,0.17972453]
[1641135476157,2.593395,175.39,175.38,0.17972453]
[1641135480478,11.147195,175.39,175.38,0.17972453]
[1641135480876,17.20753106,175.39,175.38,0.17972453]
[1641135482878,17.70753106,175.39,175.38,0.17972453]
[1641135483180,19.31626474,175.39,175.38,0.17972453]
[1641135485184,17.70753106,175.39,175.38,0.17972453]
[1641135485384,16.94753106,175.39,175.38,0.17972453]
[1641135487486,17.20753106,175.39,175.38,0.17972453]
[1641135489188,8.39373106,175.39,175.38,0.17972453]
[1641135490590,8.65373106,175.39,175.38,0.17972453]
[1641135490791,8.39373106,175.39,175.38,0.17972453]
[1641135491995,8.65373106,175.39,175.38,0.17972453]
[1641135494396,17.20743106,175.39,175.38,0.17972453]
[1641135496801,17.70743106,175.39,175.38,0.17972453]
[1641135497205,17.20743106,175.39,175.38,0.17972453]
[1641135497900,11.147095,175.39,175.38,0.17972453]
[1641135499604,2.333395,175.39,175.38,0.17972453]
[1641135500806,2.593395,175.39,175.38,0.17972453]
[1641135502107,8.65373106,175.39,175.38,0.17972453]
[1641135502512,17.20753106,175.39,175.38,0.17972453]
[1641135508418,11.147195,175.39,175.38,0.17972453]
[1641135512341,17.20753106,175.39,175.38,0.17972453]
[1641135513242,2.333395,175.39,175.38,0.17972453]
[1641135514043,8.39373106,175.39,175.38,0.17972453]
[1641135514445,16.94743106,175.39,175.38,0.17972453]
[1641135514645,17.20743106,175.39,175.38,0.17972453]
[1641135517650,11.147095,175.39,175.38,0.17972453]
[1641135518951,11.647095,175.39,175.38,0.17972453]
[1641135519353,11.647095,175.39,175.37,4.003e-05]
[1641135520053,14.54522868,175.39,175.37,4.003e-05]
[1641135520252,41.02883261,175.38,175.37,4.003e-05]
[1641135520456,50.08483261,175.38,175.37,4.003e-05]
[1641135520654,51.95356629,175.38,175.37,4.003e-05]
[1641135521455,13.95356629,175.38,175.37,4.003e-05]
[1641135521656,26.59176342,175.38,175.37,4.003e-05]
[1641135522456,26.59176342,175.38,175.27,79.2495]
[1641135522655,24.98302974,175.38,175.27,79.2495]
[1641135522855,24.98302974,175.38,175.27,79.7495]
[1641135523256,1.61463147,175.35,175.27,79.7495]
[1641135523660,8.5573,175.32,175.27,79.7495]
[1641135524057,8.8173,175.32,175.27,79.7495]
[1641135526660,8.8173,175.32,175.27,79.2495]
[1641135527960,8.8173,175.32,175.27,79.7495]
[1641135530065,8.5573,175.32,175.27,88.3064]
[1641135530263,1.61463147,175.35,175.27,87.8064]
[1641135530467,1.61463147,175.35,175.27,88.3064]
[1641135530665,1.61463147,175.35,175.27,89.73309368]
[1641135531063,1.61463147,175.38,175.27,89.73309368]
[1641135531462,8.5552,175.37,175.27,89.73309368]
[1641135531867,8.8152,175.37,175.27,89.73309368]
[1641135533866,0.26,175.37,175.27,89.73309368]
[1641135534067,8.8146,175.38,175.27,89.73309368]
[1641135534968,9.3146,175.38,175.27,89.73309368]
[1641135538395,9.3146,175.38,175.27,97.91309368]
[1641135539393,8.8146,175.38,175.27,97.91309368]
[1641135540496,9.3146,175.38,175.27,97.91309368]
[1641135543502,3.94802647,175.39,175.27,98.17309368]
[1641135544503,2.333395,175.39,175.27,98.17309368]
[1641135544706,1.61463147,175.41,175.27,98.17309368]
[1641135544904,10.42773147,175.41,175.27,98.17309368]
[1641135546115,1.2515,175.4,175.27,98.17309368]
[1641135546513,1.5115,175.4,175.27,98.17309368]
[1641135547613,3.844896,175.4,175.27,98.17309368]
[1641135553727,3.584896,175.4,175.27,98.17309368]